Workbook

Sheet NAPOLI
A1: AUTORITA' DI SISTEMA PORTUALE
A2: PORTO DI NAPOLI
A4: Concessioni demaniali anno 2017
A5: FUNZIONI E CATEGORIE | C5: CONCESSIONI | D5: CONCESSIONI (Aree scoperte) | E5: SPECCHI ACQUEI | F5: IMPIANTI DI FACILE RIMOZIONE | G5: IMPIANTI DI DIFFICILE RIMOZIONE | I5: PERTINENZE
C6: numero | D6: mq | E6: mq | F6: mq | G6: mq | H6: mc | I6: mq | J6: mc
A7: COMMERCIALE | C7: =SUM(C8:C10) -> 12 | D7: =SUM(D8:D10) -> 5,036.59 | E7: 0.00 | F7: 134.63 | G7: 0.00 | H7: 0.00 | I7: 254.27 | J7: 0.00
B8: Terminal operators | C8: 1 | D8: 4,930.00
B9: Attività commerciali | C9: 11 | D9: =47.04+50.55+9 -> 106.59 | F9: =35.96+59.87+20.4+18.4 -> 134.63 | I9: =68.68+3+10.69+56.7+46.18+62.32+6.7 -> 254.27
B10: Magazzini portuali
A11: SERVIZIO PASSEGGERI | C11: 10 | D11: =9144.14+140 -> 9,284.14 | E11: 0.00 | F11: =431.63+248.4+30 -> 710.03 | G11: 0.00 | H11: 0.00 | I11: =156.75+8+8+21.71+14.43+13.86+25.22+136+31.71+32.24+4.34+39.42+44.05+39.08 -> 574.81 | J11: 0.00
A12: INDUSTRIALE | C12: =SUM(C13:C15) -> 19 | D12: =SUM(D13:D15) -> 112,883.13 | E12: 0.00 | F12: 407.27 | G12: 495.86 | H12: 0.00 | I12: 2,758.05 | J12: 0.00
B13: Attività industriali | C13: 1 | D13: 110,745.00
B14: Depositi costieri | C14: 1 | D14: 1,092.25
B15: Cantieristica | C15: 17 | D15: =188+149+194+12.14+82+62.8+12.14+8.8+140+188+9 -> 1,045.88 | F15: =77+64+9.5+10.15+0.87+50.55+35+19.2+77+64 -> 407.27 | G15: =82.86+413 -> 495.86 | I15: =224+326.8+78+107.95+34.7+142.81+182.43+98.12+103.68+35.26+298+326.8+38.8+57.9+224+478.8 -> 2,758.05
A16: TURISTICA E DA DIPORTO | C16: =SUM(C17:C18) -> 20 | D16: 10,799.22 | E16: 10,854.00 | F16: 1,306.25 | G16: 24.82 | H16: 0.00 | I16: 101.00 | J16: 0.00
B17: Attività turistico ricreative | C17: 10 | D17: =59.5+6+18.23+303+3088+143+2500+130.5+131.13+16.05+4271 -> 10,666.41 | E17: =3635+1040+700 -> 5,375.00 | F17: =641+50.75 -> 691.75 | G17: 24.82 | I17: 0.00
B18: Nautica da diporto | C18: 10 | D18: 132.81 | E18: =328+168+170+288+2500+2025 -> 5,479.00 | F18: =4.5+360+250 -> 614.50 | I18: =61+40 -> 101.00
A19: PESCHERECCIA | C19: 1 | D19: 0.00 | E19: 182,400.00 | F19: 0.00 | G19: 0.00 | H19: 0.00 | I19: 0.00 | J19: 0.00
A20: INTERESSE GENERALE | C20: =SUM(C21:C23) -> 7 | D20: =SUM(D21:D23) -> 241.00 | E20: 0.00 | F20: 6.00 | G20: 22,313.90 | H20: 0.00 | I20: =SUM(I21:I23) -> 1,565.55 | J20: 0.00
B21: Servizi tecnico nautici | C21: 2 | D21: 0.00 | I21: =159.32+451.73+143 -> 754.05
B22: Infrastrutture | C22: 4 | D22: 241.00 | F22: 6.00 | G22: =9350+700+482+12+90+173+7+10485+989+25.9 -> 22,313.90
B23: Imprese esecutrici di opere | C23: 1 | I23: =588+107.7+68.1+11.6+26.6+9.5 -> 811.50
A24: VARIE | C24: 8 | D24: =377+1551.49+167+7.71+5042+37.73+18.18+80.62 -> 7,281.73 | E24: 0.00 | F24: 0.00 | G24: 600.00 | H24: 0.00 | I24: 39.92 | J24: 0.00
A25: TOTALE GENERALE | C25: =C7+C11+C12+C16+C19+C20+C24 -> 77 | D25: =D7+D11+D12+D16+D19+D20+D24 -> 145,525.81 | E25: 193,254.00 | F25: 2,564.18 | G25: 23,434.58 | H25: 0.00 | I25: 5,293.60 | J25: 0.00

Sheet CASTELLAMMARE
A1: AUTORITA' DI SISTEMA PORTUALE
A2: PORTO DI CASTELLAMMARE DI STABIA
A4: Concessioni demaniali anno 2017
A5: FUNZIONI E CATEGORIE | C5: CONCESSIONI | D5: CONCESSIONI (Aree scoperte) | E5: SPECCHI ACQUEI | F5: IMPIANTI DI FACILE RIMOZIONE | G5: IMPIANTI DI DIFFICILE RIMOZIONE | I5: PERTINENZE
C6: numero | D6: mq | E6: mq | F6: mq | G6: mq | H6: mc | I6: mq | J6: mc
A7: COMMERCIALE | C7: =SUM(C8:C10) -> 0 | D7: =SUM(D8:D10) -> 0.00 | E7: 0.00 | F7: 0.00 | G7: 0.00 | H7: 0.00 | I7: 0.00 | J7: 0.00
B8: Terminal operators
B9: Attività commerciali
B10: Magazzini portuali
A11: SERVIZIO PASSEGGERI | C11: 0 | D11: 0.00 | E11: 0.00 | F11: 0.00 | G11: 0.00 | H11: 0.00 | I11: 0.00 | J11: 0.00
A12: INDUSTRIALE | C12: =SUM(C13:C15) -> 0 | D12: =SUM(D13:D15) -> 0.00 | E12: 0.00 | F12: 0.00 | G12: 0.00 | H12: 0.00 | I12: 0.00 | J12: 0.00
B13: Attività industriali
B14: Depositi costieri
B15: Cantieristica
A16: TURISTICA E DA DIPORTO | C16: =SUM(C17:C18) -> 6 | D16: =SUM(D17:D18) -> 1,691.15 | E16: 18,860.48 | F16: 567.75 | G16: 630.50 | H16: 0.00 | I16: 1,638.40 | J16: =SUM(J17:J18) -> 0.00
B17: Attività turistico ricreative | C17: 4 | D17: =139.54+99.36 -> 238.90 | E17: 400.48 | F17: =198+187.35+67.5+28.7+6.2 -> 487.75 | I17: 807.57
B18: Nautica da diporto | C18: 2 | D18: =1007+215+142.25+88 -> 1,452.25 | E18: 18,460.00 | F18: 80.00 | G18: =10+21+19.5+580 -> 630.50 | I18: =428.02+29.5+144+229.31 -> 830.83
A19: PESCHERECCIA | C19: 3 | D19: =23496.27+49845.78+44324.19 -> 117,666.24 | E19: 0.00 | F19: 0.00 | G19: 0.00 | H19: 0.00 | I19: 0.00 | J19: 0.00
A20: INTERESSE GENERALE | C20: =SUM(C21:C23) -> 1 | D20: =SUM(D21:D23) -> 0.00 | E20: 0.00 | F20: 0.00 | G20: 0.00 | H20: 0.00 | I20: 47.00 | J20: 0.00
B21: Servizi tecnico nautici | C21: 1 | I21: 47.00
B22: Infrastrutture
B23: Imprese esecutrici di opere
A24: VARIE | C24: 0 | D24: 0.00 | E24: 0.00 | F24: 0.00 | G24: 0.00 | H24: 0.00 | I24: 0.00 | J24: 0.00
A25: TOTALE GENERALE | C25: =C7+C11+C12+C16+C19+C20+C24 -> 10 | D25: =D7+D11+D12+D16+D19+D20+D24 -> 119,357.39 | E25: 18,860.48 | F25: 567.75 | G25: 630.50 | H25: 0.00 | I25: 1,685.40 | J25: 0.00
